bitfinex-derivatives/quotes_ETHF0:USTF0_20251009
["timestamp","ask_amount","ask_price","bid_price","bid_amount"]
[1759977659643,0.40582,4434.6,4434.1,0.40585]
[1759977659844,0.833,4435.0,4434.0,0.63231728]
[1759977659845,0.40584,4434.4,4434.0,0.63231728]
[1759977660049,0.40585,4434.2,4434.0,0.22644728]
[1759977660249,0.5878,4434.1,4434.0,0.22644728]
[1759977660454,0.5878,4434.1,4434.0,0.22804728]
[1759977660641,0.5878,4434.1,4434.0,0.00204728]
[1759977660948,0.5878,4433.2,4432.9,0.24855885]
[1759977661140,0.40593,4433.3,4432.9,0.24855885]
[1759977661141,0.40594,4433.3,4432.9,0.24855885]
[1759977661346,0.5878,4433.2,4432.9,0.24855885]
[1759977661749,0.5878,4433.2,4433.1,0.10368721]
[1759977661750,0.59033514,4433.2,4433.1,0.10368721]
[1759977662152,0.00253514,4433.2,4433.1,5.10368721]
[1759977662951,0.59033514,4433.2,4433.1,0.10368721]
[1759977663154,0.99627514,4433.2,4433.1,0.10368721]
[1759977663343,0.59033514,4433.2,4433.1,0.10368721]
[1759977663853,0.00253514,4433.2,4433.1,0.10368721]
[1759977664753,0.00253514,4433.2,4433.1,0.32968721]
[1759977665051,0.99627514,4433.2,4433.1,0.32968721]
[1759977665655,0.00253514,4433.2,4433.1,0.32968721]
[1759977665950,0.59033514,4433.2,4433.1,0.32968721]
[1759977666154,0.00253514,4433.2,4433.1,0.32968721]
[1759977668761,0.00253514,4433.2,4433.1,0.10368721]
[1759977668948,0.57163514,4433.2,4433.1,0.32968721]
[1759977670046,0.00253514,4433.2,4433.1,0.32968721]
[1759977670252,0.97757514,4433.2,4433.1,0.32968721]
[1759977670454,0.97757514,4433.2,4433.1,0.10368721]
[1759977670846,0.97757514,4433.2,4432.9,0.02255885]
[1759977670847,1.20416,4433.0,4432.9,0.02255885]
[1759977671355,1.20416,4433.0,4432.9,0.14055885]
[1759977671653,6.20416,4433.0,4432.9,0.02255885]
[1759977671853,0.9751,4432.6,4432.5,0.47266251]
[1759977672154,0.5691,4432.6,4432.5,0.38450684]
[1759977672358,0.5691,4432.6,4431.0,0.00391425]
[1759977672359,0.5691,4431.4,4431.0,0.00391425]
[1759977672657,0.7982,4432.0,4431.4,0.92487144]
[1759977672854,0.5691,4431.9,4431.5,0.114]
[1759977673054,0.63516,4432.0,4431.6,0.226]
[1759977673354,0.40607,4431.9,4431.6,0.00270929]
[1759977673550,0.40607,4431.9,4431.7,0.226]
[1759977673855,0.2291,4432.0,4431.6,0.00270929]
[1759977674056,0.40602,4432.4,4431.8,0.226]
[1759977674250,0.52880783,4432.3,4432.0,0.40605]
[1759977674450,0.2291,4433.0,4432.1,0.5759]
[1759977674657,0.52867494,4432.9,4432.1,0.5759]
[1759977674852,0.2291,4433.0,4432.0,0.1433]
[1759977675052,0.40848514,4433.2,4432.1,0.5759]
[1759977675251,0.93506833,4433.1,4432.5,0.406]
[1759977675559,0.5691,4433.0,4432.7,0.98188]
[1759977675753,0.00253514,4433.2,4432.8,0.5759]
[1759977675754,0.5691,4433.1,4432.8,0.5759]
[1759977675955,0.00253514,4433.2,4432.6,0.226]
[1759977676156,0.52938568,4433.1,4433.0,0.5759]
[1759977676357,0.5691,4433.1,4432.3,0.5759]
[1759977676658,0.5691,4433.1,4432.5,0.5759]
[1759977676853,0.5691,4433.1,4432.5,0.7986]
[1759977677052,0.5691,4433.1,4432.7,0.40598]
[1759977677260,0.00253514,4433.2,4432.8,0.63197]
[1759977677458,0.52957978,4433.1,4433.0,0.5759]
[1759977677654,0.00253514,4433.2,4433.1,0.5759]
[1759977677859,0.53212604,4433.2,4433.1,0.5759]
[1759977680054,1.10122604,4433.2,4433.0,0.8019]
[1759977680256,0.5295909,4433.1,4433.0,0.98185]
[1759977680458,0.5295909,4433.1,4433.0,1.20785]
[1759977681961,0.5295909,4433.1,4433.0,0.8019]
[1759977682156,0.5691,4433.0,4432.9,0.40596]
[1759977682360,0.5691,4433.0,4432.9,0.63196]
[1759977682557,0.5691,4433.0,4432.9,1.20786]
[1759977682760,0.5691,4433.0,4432.9,0.8019]
[1759977683466,0.00253514,4433.2,4433.0,0.40596]
[1759977683659,0.52831275,4433.1,4433.0,0.98186]
[1759977684259,0.00253514,4433.2,4433.1,0.5759]
[1759977684659,0.53008402,4433.2,4433.1,0.5759]
[1759977685358,1.09918402,4433.2,4433.1,0.8019]
[1759977685763,0.5691,4433.1,4432.5,0.7986]
[1759977685963,0.5691,4432.9,4432.8,0.40597]
[1759977686162,0.5691,4432.9,4432.8,0.98187]
[1759977686360,1.3558,4432.9,4432.8,0.784]
[1759977686564,0.52593274,4432.9,4432.8,1.3599]
[1759977686761,0.97506,4433.0,4432.9,1.18997]
[1759977686963,1.3558,4432.9,4432.8,0.80018]
[1759977687162,1.88182477,4432.9,4432.8,1.41598]
[1759977687666,1.88182477,4432.9,4432.8,1.99188]
[1759977688164,1.3558,4432.9,4432.8,1.76588]
[1759977688368,1.88195505,4432.9,4432.8,1.76588]
[1759977688565,1.88195505,4432.9,4432.8,1.99188]
[1759977688769,1.49025505,4432.9,4432.8,1.41598]
[1759977689062,1.49025505,4432.9,4432.8,1.99188]
[1759977689868,1.88195505,4432.9,4432.8,1.18998]
[1759977690067,1.88195505,4432.9,4432.8,1.41598]
[1759977690360,1.88195505,4432.9,4432.8,1.99188]
[1759977690770,0.92115505,4432.9,4432.8,1.99188]
[1759977691367,0.9641,4432.9,4432.8,1.99188]
[1759977692369,1.37005,4433.1,4433.0,1.18996]
[1759977692568,1.89670733,4433.1,4433.0,1.99186]
[1759977693068,1.49075733,4433.1,4433.0,1.99186]
[1759977693467,1.49075733,4433.1,4432.2,0.784]
[1759977693468,1.3558,4432.3,4432.2,0.784]
[1759977693671,1.3558,4432.3,4431.6,0.00270929]
[1759977693672,1.76188,4431.7,4431.6,0.00270929]
[1759977693976,5.25680639,4431.7,4431.6,0.00270929]
[1759977694364,4.85072639,4431.7,4431.6,0.00270929]
[1759977694666,4.85072639,4431.7,4431.6,0.39690929]
[1759977694872,4.85072639,4431.7,4431.6,0.17570929]
[1759977695269,9.85072639,4431.7,4431.6,0.00270929]
[1759977697365,4.85072639,4431.7,4431.6,0.00270929]
[1759977697570,4.32414746,4431.7,4431.6,0.00270929]
[1759977699274,4.32414746,4431.7,4431.6,0.77570929]
[1759977699468,4.32414746,4431.7,4431.6,0.00270929]
[1759977702369,4.32414746,4431.7,4431.6,0.38330929]
[1759977702574,4.32414746,4431.7,4431.6,0.76210929]
[1759977702877,1.3558,4431.7,4431.6,0.76210929]
[1759977703871,1.3558,4431.7,4431.6,1.34060929]
[1759977704670,0.6048,4432.4,4431.9,1.3891]
[1759977704875,1.4014,4432.8,4432.7,0.81058]
[1759977705775,1.4014,4432.8,4432.7,1.79508]
[1759977706174,1.0059,4432.8,4432.7,1.79508]
[1759977707474,0.6048,4433.0,4432.7,0.8106]
[1759977707684,1.0059,4433.0,4432.9,1.3891]
[1759977708585,1.40393514,4433.2,4433.1,0.4046]
[1759977708783,0.00253514,4433.2,4433.1,1.6151]
[1759977709081,0.60733514,4433.2,4432.6,0.5785]
[1759977709281,1.0059,4432.0,4431.9,0.4046]
[1759977709481,1.4014,4432.0,4431.9,0.6306]
[1759977709779,1.4014,4431.7,4431.6,0.81338929]
[1759977710080,1.4014,4431.7,4431.6,0.22870929]
[1759977710384,1.4014,4431.7,4431.6,1.39180929]
[1759977710681,1.63,4432.0,4431.9,0.4046]
[1759977711572,0.40606,4431.9,4431.7,0.40608]
[1759977711772,0.7966,4431.8,4431.7,0.4046]
[1759977712181,0.7966,4431.8,4431.7,0.6306]
[1759977712380,1.4014,4431.8,4431.7,0.6306]
[1759977713684,1.4014,4431.8,4431.7,1.0366]
[1759977713882,1.4014,4431.8,4431.7,1.6151]
[1759977714677,0.6048,4432.4,4431.8,0.5785]
[1759977714878,0.6048,4432.4,4432.3,1.3891]
[1759977714879,1.0059,4432.4,4432.3,1.3891]
[1759977715078,0.6048,4432.4,4432.3,1.6151]
[1759977715486,1.0059,4432.4,4432.3,1.6151]
[1759977715988,0.6297,4433.0,4432.9,0.81057]
[1759977716286,1.2345,4433.0,4432.9,0.8106]
[1759977716482,1.63,4433.0,4432.9,1.0366]
[1759977716680,0.4011,4432.7,4432.6,1.38909]
[1759977716876,1.0059,4432.7,4432.6,1.44259]
[1759977717077,1.2345,4433.0,4432.9,0.4046]
[1759977717278,1.2345,4433.0,4432.9,1.0366]
[1759977717682,1.63,4433.0,4432.9,1.0366]
[1759977717882,1.63,4433.0,4432.9,0.6306]
[1759977718884,0.8334,4433.5,4432.9,1.0366]
[1759977719080,0.2286,4433.5,4433.1,1.3891]
[1759977719286,0.40592,4433.4,4433.1,1.3891]
[1759977719482,1.00843514,4433.2,4433.1,1.3891]
[1759977720181,1.00843514,4433.2,4433.1,0.8106]
[1759977720387,1.00843514,4433.2,4432.9,0.40597]
[1759977720388,1.80988514,4433.2,4432.9,0.40597]
[1759977720692,0.4011,4431.9,4431.8,0.9831]
[1759977720878,1.4014,4431.9,4431.8,0.63207]
[1759977721078,1.4014,4431.9,4431.6,0.00270929]
[1759977721079,1.01087,4431.8,4431.6,0.00270929]
[1759977721281,1.01088,4431.8,4431.6,0.00270929]
[1759977721489,8.50253876,4431.7,4431.6,0.00270929]
[1759977721683,8.50253876,4431.7,4431.6,9.29e-06]
[1759977722582,3.50253876,4431.7,4431.6,9.29e-06]
[1759977724379,8.50253876,4431.7,4431.6,9.29e-06]
[1759977726994,0.8334,4430.0,4429.9,0.089]
[1759977727488,3.70738519,4430.0,4429.9,0.089]
[1759977727890,3.71005358,4430.0,4429.9,0.09183408]
[1759977728390,0.83606839,4430.0,4429.9,0.09183408]
[1759977728792,0.83606839,4430.0,4429.1,0.10159963]
[1759977728793,0.2356,4429.5,4429.1,0.10159963]
[1759977728990,3.22384911,4430.0,4429.9,0.6187]
[1759977728991,0.00266839,4430.0,4429.9,0.6187]
[1759977729198,0.00266839,4430.0,4429.9,0.8457]
[1759977729691,0.00266839,4430.0,4429.9,0.84804871]
[1759977730587,0.23826839,4430.0,4429.9,0.00234871]
[1759977730788,0.40627,4429.7,4429.2,0.066]
[1759977730988,0.40628,4429.6,4429.2,0.066]
[1759977731191,0.6181,4429.2,4429.1,0.10159963]
[1759977731391,0.6181,4429.2,4429.1,0.32859963]
[1759977731592,1.02439,4429.4,4429.1,0.94729963]
[1759977731788,0.6181,4429.2,4429.1,0.10450112]
[1759977731987,3.5465818,4429.2,4429.1,0.33150112]
[1759977732186,0.6181,4429.2,4429.1,0.10450112]
[1759977732592,0.8537,4428.0,4427.9,0.02258432]
[1759977732998,0.6181,4428.0,4427.9,0.02258432]
[1759977733200,0.6181,4427.4,4427.0,0.227]
[1759977733401,0.2356,4427.5,4427.0,0.6335]
[1759977733696,0.2356,4427.5,4427.0,0.00211262]
[1759977733896,0.6181,4427.3,4427.0,0.00211262]
[1759977734198,0.6181,4426.7,4425.6,0.6187]
[1759977734400,0.6181,4427.1,4426.8,0.6187]
[1759977734700,0.6181,4427.1,4425.7,0.227]
[1759977734701,0.2356,4426.5,4425.9,0.227]
[1759977734891,0.40657,4426.4,4426.0,0.227]
[1759977735095,0.40657,4426.4,4423.8,0.6187]
[1759977735096,0.2356,4426.0,4423.8,0.6187]
[1759977735398,2.76707674,4426.4,4425.0,0.2308]
[1759977735399,0.62057074,4426.4,4425.0,0.2308]
[1759977735600,0.6181,4426.3,4425.5,0.6187]
[1759977735795,0.6181,4426.3,4425.4,35.223]
[1759977735996,0.00247074,4426.4,4425.0,0.40669]
[1759977735997,0.6181,4426.1,4425.0,0.40669]
[1759977736201,0.2356,4425.5,4424.6,0.6187]
[1759977736402,0.40669,4425.0,4424.6,0.6187]
[1759977736601,0.40669,4425.0,4423.8,0.00241181]
[1759977736602,0.6181,4424.4,4423.8,0.00241181]
[1759977736901,0.6181,4423.4,4423.3,0.47266251]
[1759977737100,3.382706,4423.4,4422.9,0.01732574]
[1759977737301,0.8537,4423.0,4422.9,0.01732574]
[1759977737500,0.6181,4423.0,4422.9,0.01732574]
[1759977737699,0.8537,4422.5,4421.0,0.62265051]
[1759977737901,0.8537,4422.5,4421.0,0.85546482]
[1759977737902,0.6181,4422.4,4421.0,0.85546482]
[1759977738097,3.54600236,4422.4,4421.5,0.40701]
[1759977738298,3.54600236,4422.4,4420.4,0.6187]
[1759977738299,0.2356,4421.5,4420.4,0.6187]
[1759977738499,0.2356,4422.0,4421.0,0.40706]
[1759977738696,0.2356,4422.0,4421.1,0.227]
[1759977738904,2.88993781,4421.9,4421.2,35.461]
[1759977739202,0.2356,4421.0,4417.0,1.01857]
[1759977739405,3.000206,4422.0,4420.4,0.6187]
[1759977739607,0.2356,4422.0,4420.6,0.6187]
[1759977739809,2.89327026,4421.2,4420.7,0.129]
[1759977740005,2.89327026,4421.9,4421.1,0.6187]
[1759977740207,0.6181,4422.5,4421.1,0.6187]
[1759977740402,2.95698585,4422.2,4421.2,0.144]
[1759977740601,2.95698585,4422.2,4421.0,0.2308]
[1759977740602,2.95698585,4422.2,4421.5,0.63781]
[1759977740798,0.6181,4422.5,4421.8,0.6187]
[1759977741097,0.8537,4422.0,4420.9,0.227]
[1759977741504,2.91971196,4421.9,4421.0,40.8]
[1759977741703,0.407,4421.7,4421.0,0.227]
[1759977741905,0.6181,4421.6,4421.0,0.227]
[1759977742105,3.53781196,4421.6,4421.0,0.227]
[1759977742302,0.6181,4421.6,4420.6,0.6187]
[1759977742502,0.6181,4421.6,4420.7,35.481]
[1759977742704,2.95069135,4421.5,4420.8,0.6187]
[1759977743009,0.6181,4421.4,4421.0,0.6187]
[1759977743214,0.6181,4421.4,4421.1,0.227]
[1759977743510,0.6181,4421.4,4420.8,0.6187]
[1759977743511,2.898822,4421.3,4421.2,0.227]
[1759977743713,0.6181,4422.0,4421.2,0.8457]
[1759977743905,0.6181,4422.0,4421.2,1.25274]
[1759977744107,2.898822,4421.9,4421.2,1.25274]
[1759977744409,2.898822,4421.9,4421.3,0.227]
[1759977744608,0.6181,4422.8,4421.8,0.6187]
[1759977744805,0.6181,4422.8,4421.9,0.40698]
[1759977745106,2.93130072,4422.4,4422.0,0.63397]
[1759977745317,2.93130072,4422.7,4422.1,0.227]
[1759977745506,0.6181,4422.8,4422.1,0.227]
[1759977745701,2.95660513,4422.7,4422.5,0.6187]
[1759977745913,2.95660513,4422.7,4422.6,0.6187]
[1759977746112,0.00276845,4423.0,4422.5,0.40691]
[1759977746309,0.00276845,4423.0,4422.2,0.6187]
[1759977746614,0.00276845,4423.0,4422.7,0.4069]
[1759977746805,0.00276845,4423.0,4422.7,0.6187]
[1759977747012,0.00276845,4423.0,4422.8,0.63389]
[1759977747315,0.00276845,4423.0,4422.9,0.6187]
[1759977747503,0.00276845,4423.0,4422.6,0.6187]
[1759977747705,0.6181,4422.8,4422.7,0.17]
[1759977747910,0.6181,4422.8,4422.7,0.166]
[1759977748112,0.6181,4422.8,4422.7,0.227]
[1759977748611,0.00276845,4423.0,4422.7,0.227]
[1759977748807,0.00276845,4423.0,4422.7,0.8457]
[1759977749006,0.00276845,4423.0,4422.8,0.6187]
[1759977749510,0.00276845,4423.0,4418.8,3.1187]
[1759977749511,0.6181,4421.4,4418.8,3.1187]
[1759977749708,0.6181,4420.9,4419.5,2.995406]
[1759977749904,0.6181,4420.9,4420.3,0.6187]
[1759977750104,2.98165478,4420.8,4420.4,0.227]
[1759977750301,2.98165478,4420.8,4420.6,0.40709]
[1759977750507,0.40702,4421.5,4420.6,1.02772793]
[1759977750717,0.40701,4421.6,4420.7,0.40708]
[1759977751012,2.89372091,4421.4,4420.6,0.62063793]
[1759977751212,2.89372091,4421.6,4421.0,0.40705]
[1759977751414,0.6181,4421.7,4421.1,0.227]
[1759977751617,3.58045942,4421.6,4421.2,0.227]
[1759977751803,2.96235942,4421.6,4421.3,0.6187]
[1759977752005,2.96235942,4421.6,4421.3,1.02573]
[1759977752315,2.96235942,4421.6,4421.4,0.8457]
[1759977752610,2.96235942,4421.6,4421.4,0.40702]
[1759977752816,0.6181,4422.2,4421.8,0.40698]
[1759977753115,0.6181,4422.8,4422.0,0.40696]
[1759977753614,2.91519571,4422.4,4422.0,0.40696]
[1759977753816,2.91519571,4422.7,4422.1,0.6187]
[1759977754013,0.6181,4422.8,4422.1,1.02565]
[1759977754216,2.91519571,4422.7,4422.2,0.227]
[1759977754410,0.40694,4422.4,4421.1,0.6187]
[1759977754617,0.40694,4422.3,4421.2,76.289]
[1759977754805,0.40694,4422.3,4421.2,40.8]
[1759977754806,2.764606,4422.1,4421.2,40.8]
[1759977755005,2.764606,4422.1,4420.7,0.40708]
[1759977755006,0.8537,4422.0,4420.7,0.40708]
[1759977755218,0.40702,4421.5,4420.8,0.227]
[1759977755416,0.40701,4421.6,4420.9,0.40706]
[1759977755617,2.88591689,4421.4,4420.9,0.40706]
[1759977755811,0.6181,4421.3,4420.9,1.02576]
[1759977756117,0.6181,4421.3,4421.0,0.227]
[1759977756413,0.6181,4421.3,4421.1,0.227]
[1759977756713,0.6181,4421.8,4421.1,0.227]
[1759977756912,0.40701,4421.6,4421.1,0.227]
[1759977757115,1.02511,4421.6,4421.1,0.8457]
[1759977757413,2.93721661,4421.5,4421.2,0.6187]
[1759977758117,3.34423661,4421.5,4421.3,0.8457]
[1759977758321,3.34423661,4421.5,4421.3,0.6187]
[1759977758513,3.34423661,4421.5,4420.8,41.4187]
[1759977758713,2.93721661,4421.5,4421.1,0.96445]
[1759977759015,2.93721661,4421.5,4421.3,0.96443]
[1759977759618,2.93721661,4421.5,4421.3,0.5574]
[1759977760014,0.2356,4422.0,4421.3,0.5574]
[1759977760222,0.2356,4423.5,4421.3,0.5574]
[1759977760223,1.18591628,4424.2,4423.6,0.5574]
[1759977760412,1.01664,4425.5,4424.0,0.7777]
[1759977760715,2.96367405,4424.6,4424.1,0.227]
[1759977760918,0.40676,4424.3,4424.2,0.227]
[1759977761121,0.40676,4424.3,4422.7,0.5574]
[1759977761122,0.40685,4423.3,4422.7,0.5574]
[1759977761422,2.91233315,4423.2,4422.7,0.001589]
[1759977761626,3.31919315,4423.2,4422.7,0.001589]
[1759977761816,0.40686,4423.2,4422.7,0.408489]
[1759977762120,2.91233315,4423.1,4423.0,0.7777]
[1759977762319,2.91233315,4423.1,4423.0,1.0047]
[1759977762622,2.93070476,4423.9,4423.1,0.5574]
[1759977762917,2.93070476,4423.7,4423.3,0.40684]
[1759977763113,2.93070476,4423.7,4423.0,0.4473]
[1759977763417,0.40681,4423.8,4423.6,0.631]
[1759977763714,0.40681,4423.8,4423.7,0.631]
[1759977764221,3.34277481,4423.8,4423.7,0.631]
[1759977764613,2.93596481,4423.8,4423.4,0.187]
[1759977764813,0.40685,4423.3,4423.0,0.2203]
[1759977765121,2.87679771,4423.2,4422.9,0.40688]
[1759977765318,2.87679771,4423.2,4423.0,0.2431]
[1759977765519,0.40685,4423.3,4423.0,0.2431]
[1759977765723,2.95902501,4423.8,4423.0,0.2431]
[1759977765724,3.35570501,4423.2,4423.1,0.631]
[1759977766118,0.40686,4423.2,4423.1,0.631]
[1759977766316,3.30133939,4423.2,4423.1,0.631]
[1759977766820,2.89447939,4423.2,4423.1,0.631]
[1759977767223,0.40684,4423.4,4423.2,0.631]
[1759977767524,3.37712329,4423.4,4423.3,0.631]
[1759977770014,0.40687,4423.1,4423.0,0.8741]
[1759977770218,0.4069,4422.8,4422.7,0.632589]
[1759977770425,0.4069,4422.8,4422.7,0.001589]
[1759977770715,8.36746457,4422.8,4422.7,0.001589]
[1759977772326,9.55338085,4422.8,4422.7,0.001589]
[1759977772526,3.89100003,4422.8,4422.7,0.001589]
[1759977773624,3.89100003,4422.8,4422.7,0.632589]
[1759977774422,8.89100003,4422.8,4422.7,0.632589]
[1759977774620,8.89100003,4422.8,4422.7,0.001589]
[1759977775016,3.89100003,4422.8,4422.7,0.001589]
[1759977776828,0.40701,4421.6,4421.5,0.8741]
[1759977777223,0.92767846,4421.6,4421.5,0.8741]
[1759977777825,0.92767846,4421.6,4421.5,0.87643138]
[1759977778125,0.52066846,4421.6,4421.5,0.87643138]
[1759977778730,0.407,4421.7,4421.6,0.631]
[1759977778924,0.407,4421.7,4421.6,0.858]
[1759977779125,0.40699,4421.8,4421.7,0.631]
[1759977779719,0.92673322,4421.8,4421.7,0.631]
[1759977780735,3.80614102,4421.8,4421.7,0.631]
[1759977780924,0.40701,4421.6,4421.5,0.00233138]
[1759977781331,0.4071,4420.6,4420.5,0.2431]
[1759977781528,0.4071,4420.6,4420.5,0.8951]
[1759977781927,0.4071,4420.6,4420.5,0.8741]
[1759977782120,0.4071,4420.6,4420.0,0.2431]
[1759977782121,0.40714,4420.1,4420.0,0.8741]
[1759977782333,0.40929107,4420.1,4420.0,0.87651741]
[1759977782632,3.38330685,4420.1,4420.0,0.87651741]
[1759977783224,3.90214447,4420.1,4420.0,0.00241741]
[1759977783428,3.90214447,4420.1,4420.0,0.63341741]
[1759977784432,2.97616685,4420.1,4420.0,0.87651741]
[1759977784629,0.00215107,4420.1,4420.0,0.87651741]
[1759977785026,0.00215107,4420.1,4420.0,1.10351741]
[1759977785226,0.00215107,4420.1,4420.0,0.87651741]
[1759977786727,0.114,4421.4,4420.1,0.631]
[1759977786928,0.51727738,4421.3,4421.0,0.2431]
[1759977787128,2.9151236,4421.3,4421.0,0.2431]
[1759977787325,0.40708,4420.9,4420.7,0.2]
[1759977787531,1.01757,4421.4,4420.6,0.631]
[1759977787729,2.91204599,4420.8,4420.7,0.631]
[1759977787935,2.91204599,4421.2,4420.7,0.631]
[1759977788239,3.31907599,4421.3,4421.1,0.631]
[1759977788436,3.39796017,4421.1,4421.0,0.8741]
[1759977788823,0.40705,4421.1,4421.0,0.8741]
[1759977789025,3.39796017,4421.1,4421.0,0.8741]
[1759977789230,0.3178,4421.0,4420.5,0.2431]
[1759977789426,0.3178,4421.0,4420.0,0.24551741]
[1759977789427,0.4071,4420.6,4420.1,0.40714]
[1759977789632,0.40711,4420.5,4420.1,0.40714]
[1759977789828,0.40714,4420.2,4420.0,0.24551741]
[1759977790134,2.8980072,4420.1,4420.0,0.24551741]
[1759977790636,3.38534595,4420.2,4420.0,0.24551741]
[1759977790939,2.97820595,4420.9,4420.0,0.24551741]
[1759977790940,1.01764,4421.1,4420.0,0.24551741]
[1759977791131,2.97820595,4420.1,4420.0,0.00241741]
[1759977791438,0.3178,4420.1,4420.0,0.00241741]
[1759977791632,2.94732725,4420.1,4420.0,0.00241741]
[1759977791832,3.26512725,4420.1,4420.0,0.00241741]
[1759977792742,0.40724,4419.1,4419.0,0.6363]
[1759977792929,0.3178,4419.5,4418.9,0.6363]
[1759977793235,0.40721,4419.4,4419.0,0.253]
[1759977793440,0.40722,4419.3,4419.0,0.253]
[1759977793641,0.40723,4419.2,4419.1,0.6363]
[1759977793836,0.72503,4419.2,4419.1,0.0019129]
[1759977794037,3.63402827,4419.2,4419.1,0.0019129]
[1759977794240,2.90899827,4419.2,4419.1,0.6382129]
[1759977794433,0.40717,4419.9,4419.6,0.6363]
[1759977794631,0.40717,4419.8,4419.5,0.253]
[1759977794831,2.95380861,4419.7,4419.6,0.6363]
[1759977795135,0.3178,4420.4,4419.6,0.6363]
[1759977795434,2.95380861,4419.7,4419.6,0.6363]
[1759977795640,3.38630753,4419.8,4419.6,0.6363]
[1759977795837,2.97913753,4420.2,4419.5,0.253]
[1759977795838,0.40719,4419.6,4419.5,0.253]
[1759977796041,3.38631753,4419.7,4419.5,0.253]
[1759977796340,0.40723,4419.3,4419.1,0.2299129]
[1759977796635,0.3178,4419.2,4419.1,0.0019129]
[1759977796841,2.97578763,4419.2,4419.1,0.0019129]
[1759977797237,1.01794,4419.8,4418.8,2.5]
[1759977797429,0.40725,4419.0,4418.8,2.5]
[1759977797635,0.3159,4418.9,4418.8,2.5]
[1759977797932,3.20094018,4418.9,4418.8,2.5]
[1759977798333,3.20094018,4418.9,4418.8,2.50289006]
[1759977799141,8.20094018,4418.9,4418.8,1.98907006]
[1759977799335,8.20094018,4418.9,4418.8,1.5091764]
[1759977799535,8.20094018,4418.9,4418.0,0.253]
[1759977799737,0.40733,4418.1,4418.0,0.253]
[1759977799936,0.40733,4418.1,4418.0,0.8893]
[1759977800136,2.96280546,4418.1,4418.0,0.8893]
[1759977800435,1.01797,4419.3,4418.1,0.6363]
[1759977800641,0.40727,4418.4,4418.1,0.6363]
[1759977800836,0.40727,4418.3,4418.2,0.228]
[1759977801041,3.36218649,4418.3,4418.2,0.8643]
[1759977801338,2.72420347,4422.6,4418.2,0.8643]
[1759977801339,1.18591628,4421.1,4419.1,0.6363]
[1759977801538,0.40718,4419.3,4419.1,0.8643]
[1759977801742,2.95594811,4419.2,4419.1,0.8643]
[1759977802735,2.95594811,4419.2,4419.1,0.6363]
[1759977802941,0.00184567,4419.2,4419.1,0.8643]
[1759977804040,0.40708,4420.4,4420.0,0.253]
[1759977804237,0.40709,4420.3,4420.2,0.6363]
[1759977804644,2.91952838,4420.4,4420.2,0.6363]
[1759977804846,1.01726,4422.4,4421.5,0.253]
[1759977805042,1.01965612,4422.4,4421.6,0.6363]
[1759977805247,0.40696,4421.7,4421.6,0.6363]
[1759977805739,3.32538993,4421.7,4421.6,0.6363]
[1759977805945,0.40695,4421.8,4421.6,0.6363]
[1759977806141,0.40697,4421.6,4421.5,0.89208096]
[1759977806345,0.40697,4421.6,4421.5,1.12008096]
[1759977807037,3.32985848,4421.6,4421.5,0.89208096]
[1759977808240,0.00239612,4422.4,4422.1,0.6363]
[1759977808438,0.00239612,4422.4,4422.0,0.253]
[1759977808439,0.40692,4422.1,4422.0,0.8893]
[1759977808634,0.40697,4421.6,4421.5,0.25578096]
[1759977808850,0.40697,4421.6,4421.5,1.10508096]
[1759977809047,3.38769398,4421.6,4421.5,1.10508096]
[1759977809342,3.38769398,4421.6,4421.5,0.89208096]
[1759977809645,0.40706,4420.6,4420.5,0.253]
[1759977810045,0.40709,4420.2,4420.0,0.253]
[1759977810250,1.01777,4420.1,4419.6,0.6363]
[1759977810443,1.01779,4420.0,4419.7,0.6363]
[1759977810638,1.01779,4420.0,4419.6,0.00273161]
[1759977810850,1.01779,4420.0,4419.6,0.63903161]
[1759977810851,0.40714,4419.7,4419.6,0.63903161]
[1759977811146,3.40611847,4419.7,4419.6,0.63903161]
[1759977812745,3.40611847,4419.7,4419.6,0.00273161]
[1759977813051,3.40611847,4419.7,4418.6,0.6363]
[1759977813052,0.40724,4418.7,4418.6,0.6363]
[1759977813238,0.40721,4419.0,4418.6,0.6363]
[1759977813440,0.40719,4419.2,4419.0,0.253]
[1759977813745,0.40719,4419.2,4419.1,0.6363]
[1759977813946,0.40890348,4419.2,4419.1,0.63907083]
[1759977814149,3.30615944,4419.2,4419.1,0.63907083]
[1759977814749,2.89896944,4419.2,4419.1,0.86707083]
[1759977814946,0.40714,4419.7,4419.5,0.253]
[1759977815142,0.40714,4419.7,4419.6,0.6363]
[1759977815451,0.40711,4420.1,4420.0,0.253]
[1759977815661,3.00737335,4420.3,4420.1,0.6363]
[1759977815846,2.97747506,4420.6,4420.5,0.8893]
[1759977816145,0.40871324,4420.6,4420.5,0.8893]
[1759977816555,0.00165324,4420.6,4420.5,5.8893]
[1759977816848,0.40697,4421.6,4421.5,0.8893]
[1759977817246,3.31843084,4421.6,4421.5,0.8893]
[1759977817753,3.32094119,4421.6,4421.5,0.8893]
[1759977818545,3.32094119,4421.6,4421.5,5.8893]
[1759977818546,0.00251035,4421.6,4421.5,5.8893]
[1759977818744,10.16971,4423.6,4421.5,5.8893]
[1759977818745,0.40692,4422.2,4422.1,0.574]
[1759977818950,0.40689,4422.5,4422.2,0.574]
[1759977819349,0.40689,4422.5,4422.1,0.228]
[1759977819350,0.40687,4422.7,4422.5,0.2383]
[1759977819652,0.00283006,4422.7,4422.6,0.574]
[1759977820051,2.94743101,4422.7,4422.6,0.574]
[1759977820453,0.00283006,4422.7,4422.6,0.574]
[1759977821049,0.41695,4423.8,4423.6,0.574]
[1759977821354,2.88203681,4423.7,4423.6,0.574]
[1759977821552,3.28881681,4423.7,4423.6,0.574]
[1759977821957,3.29080321,4423.7,4423.6,0.574]
[1759977822153,2.88403321,4423.7,4423.6,0.574]
[1759977822956,0.0019964,4423.7,4423.6,0.574]